Workbook

Sheet RK4
A1: 2020-03-07 | C1: Want to solve y' = f(x,y) with y(x0) = y0 | I1: f = x + y | K1: Mathematica
B2: Numerical Solutions of Differential Equations - J. Mahaffy, San Diego State University | J2: https://jmahaffy.sdsu.edu/courses.html
C3: Runge-Kutta Method | H3: c = | I3: 3 | K3: sol = DSolve[y'[t] == t + y[t], y, t]
B4: x0 = | C4: 0 | D4: y0 = | E4: 2 | F4: h= | G4: 0.1 | K4: y = c*EXP(x)-1-x
E5: f(x+h/2,y+k1h/2) | G5: f(x+h,y+k3h)
D6: f(x,y) | F6: f(x+h/2,y+k2h/2) | H6: y(n+1) = y(n)+(h/6)*(k1 + 2*k2 + 2*k3 + k4)
A7: n | B7: x(n) | C7: y(n) | D7: k1 | E7: k2 | F7: k3 | G7: k4 | I7: Analytic
A8: 0 | B8: =$C$4 -> 0 | C8: =$E$4 -> 2 | D8: =f(B8,C8) -> 2 | E8: =f(B8 + h/2, C8 + h*D8/2) -> 2.15 | F8: =f(B8 + h/2, C8 + h*E8/2) -> 2.1575 | G8: =f(B8 + h, C8 + h*F8) -> 2.31575 | H8: =C8+(h/6)*(D8 + 2*E8 + 2*F8 +G8 ) -> 2.2155125 | I8: =$I$3*EXP(B8)-1-B8 -> 2
A9: =A8+1 -> 1 | B9: =B8+$G$4 -> 0.1 | C9: =H8 -> 2.2155125 | D9: =f(B9,C9) -> 2.3155125 | E9: =f(B9 + h/2, C9 + h*D9/2) -> 2.481288125 | F9: =f(B9 + h/2, C9 + h*E9/2) -> 2.489576906 | G9: =f(B9 + h, C9 + h*F9) -> 2.664470191 | H9: =C9+(h/6)*(D9 + 2*E9 + 2*F9 +G9 ) -> 2.464207713 | I9: =$I$3*EXP(B9)-1-B9 -> 2.215512754
A10: =A9+1 -> 2 | B10: 0.2 | C10: 2.464207713 | D10: 2.664207713 | E10: 2.847418098 | F10: 2.856578617 | G10: 3.049865574 | H10: 2.749575491 | I10: 2.464208274
A11: 3 | B11: 0.3 | C11: 2.749575491 | D11: 3.049575491 | E11: 3.252054266 | F11: 3.262178204 | G11: 3.475793312 | H11: 3.07547272 | I11: 2.749576423
A12: 4 | B12: 0.4 | C12: 3.07547272 | D12: 3.47547272 | E12: 3.699246356 | F12: 3.710435038 | G12: 3.946516224 | H12: 3.446161916 | I12: 3.075474093
A13: 5 | B13: 0.5 | C13: 3.446161916 | D13: 3.946161916 | E13: 4.193470012 | F13: 4.205835416 | G13: 4.466745457 | H13: 3.866353886 | I13: 3.446163812
A14: 6 | B14: 0.6 | C14: 3.866353886 | D14: 4.466353886 | E14: 4.739671581 | F14: 4.753337465 | G14: 5.041687633 | H14: 4.34125488 | I14: 3.866356401
A15: 7 | B15: 0.7 | C15: 4.34125488 | D15: 5.04125488 | E15: 5.343317624 | F15: 5.358420761 | G15: 5.677096956 | H15: 4.87661869 | I15: 4.341258122
A16: 8 | B16: 0.8 | C16: 4.87661869 | D16: 5.67661869 | E16: 6.010449624 | F16: 6.027141171 | G16: 6.379332807 | H16: 5.478804241 | I16: 4.876622785
A17: 9 | B17: 0.9 | C17: 5.478804241 | D17: 6.378804241 | E17: 6.747744453 | F17: 6.766191464 | G17: 7.155423388 | H17: 6.154839232 | I17: 5.478809333
A18: 10 | B18: 1 | C18: 6.154839232 | D18: 7.154839232 | E18: 7.562581194 | F18: 7.582968292 | G18: 8.013136062 | H18: 6.91249047 | I18: 6.154845485
A19: 11 | B19: 1.1 | C19: 6.91249047 | D19: 8.01249047 | E19: 8.463114994 | F19: 8.48564622 | G19: 8.961055092 | H19: 7.760341603 | I19: 6.912498072
A20: 12 | B20: 1.2 | C20: 7.760341603 | D20: 8.960341603 | E20: 9.458358684 | F20: 9.483259538 | G20: 10.00866756 | H20: 8.70787903 | I20: 7.760350768
A21: 13 | B21: 1.3 | C21: 8.70787903 | D21: 10.00787903 | E21: 10.55827298 | F21: 10.58579268 | G21: 11.1664583 | H21: 9.765586841 | I21: 8.707890003
A22: 14 | B22: 1.4 | C22: 9.765586841 | D22: 11.16558684 | E22: 11.77386618 | F22: 11.80428015 | G22: 12.44601486 | H22: 10.94505175 | I22: 9.765599901
A23: 15 | B23: 1.5 | C23: 10.94505175 | D23: 12.44505175 | E23: 13.11730433 | F23: 13.15091696 | G23: 13.86014344 | H23: 12.25907904 | I23: 10.94506721
A24: 16 | B24: 1.6 | C24: 12.25907904 | D24: 13.85907904 | E24: 14.602033 | F24: 14.63918069 | G24: 15.42299711 | H24: 13.72182077 | I24: 12.25909727
A25: 17 | B25: 1.7 | C25: 13.72182077 | D25: 15.42182077 | E25: 16.24291181 | F25: 16.28396636 | G25: 17.1502174 | H25: 15.34891734 | I25: 13.72184218
A26: 18 | B26: 1.8 | C26: 15.34891734 | D26: 17.14891734 | E26: 18.05636321 | F26: 18.1017355 | G26: 19.05909089 | H26: 17.15765411 | I26: 15.34894239
A27: 19 | B27: 1.9 | C27: 17.15765411 | D27: 19.05765411 | E27: 20.06053681 | F27: 20.11068095 | G27: 21.1687222 | H27: 19.1671343 | I27: 17.15768333
A28: 20 | B28: 2 | C28: 19.1671343 | D28: 21.1671343 | E28: 22.27549102 | F28: 22.33090885 | G28: 23.50022519 | H28: 21.39847029 | I28: 19.1671683
